fUST/lending_fUST_20241003
["ID","MTS","AMOUNT","RATE_DAILY","PERIOD"]
[339749792,1727939441054,-172.84342802,0.00013598,2]
[339749794,1727939441064,-116122.20526633,0.000136,2]
[339749796,1727939441077,-86878.87252313,0.000136,2]
[339750274,1727939446665,-153.0,0.00013,2]
[339750276,1727939446675,-209.4588924,0.00013,2]
[339750278,1727939446686,-264.22406358,0.000136,2]
[339751723,1727939462583,246.72512757,0.00010201,2]
[339751724,1727939462606,221.34131479,0.00010201,2]
[339751725,1727939462628,31.93355764,0.00010201,2]
[339751744,1727939532045,216.0,0.000209,120]
[339751745,1727939560057,-1000.0,0.00013,13]
[339751749,1727940347163,-180.2065,0.00011753,2]
[339751750,1727940347185,-893.25738004,0.00012226,2]
[339751751,1727940348102,-264.74230991,0.00012226,2]
[339751752,1727940432102,-480.42333077,0.00012226,2]
[339751753,1727940450143,-1361.57697928,0.00012226,2]
[339751754,1727940450170,-3159.50304921,0.00012344,2]
[339751756,1727940552121,-2827.8048089,0.00012073,2]
[339751761,1727940568177,-162.765249,0.00012347,2]
[339751762,1727940568199,-457.72958185,0.00012398,2]
[339751763,1727940568222,-162.765249,0.00012419,2]
[339751764,1727940568245,-162.765249,0.0001249,2]
[339751765,1727940568270,-162.765249,0.00012562,2]
[339751769,1727940595194,209.0,0.000209,120]
[339751816,1727940631830,-549.556197,0.00012603,2]
[339751818,1727940631840,-162.765249,0.00012633,2]
[339751820,1727940631849,-162.765249,0.00012705,2]
[339751822,1727940631859,-162.765249,0.00012776,2]
[339751824,1727940631869,-162.765249,0.00012848,2]
[339751826,1727940631878,-300.0,0.00012899,2]
[339751828,1727940631887,-169.07988567,0.00012899,2]
[339751831,1727940631899,-130.92011433,0.00012899,2]
[339751833,1727940631908,-153.0,0.000129,2]
[339751835,1727940631918,-153.0,0.000129,2]
[339751837,1727940631927,-25.54385643,0.000129,2]
[339751839,1727940631940,-127.45614357,0.000129,2]
[339751840,1727940631949,-418.408828,0.000129,2]
[339751842,1727940631959,-153.0,0.000129,2]
[339751844,1727940631968,-234.17309969,0.000129,2]
[339751846,1727940631980,-15.94663571,0.000129,2]
[339751847,1727940631989,-153.0,0.000129,2]
[339751854,1727940632206,-209.5065215,0.000129,2]
[339751855,1727940632216,-153.0,0.000129,2]
[339751856,1727940632226,-162.765249,0.00012919,2]
[339751857,1727940632236,-500.0,0.0001292,2]
[339751858,1727940632246,-153.0,0.00012978,2]
[339751859,1727940632257,-233.7495503,0.00012978,2]
[339751860,1727940632266,-162.765249,0.00012991,2]
[339751861,1727940632276,-209.4588924,0.00013029,2]
[339751862,1727940632286,-209.4588924,0.00013029,2]
[339751863,1727940632296,-346.233592,0.00013078,2]
[339751864,1727940632307,-153.0,0.00013078,2]
[339751865,1727940632317,-209.4588924,0.00013078,2]
[339751866,1727940632327,-209.3635278,0.00013078,2]
[339751867,1727940632337,-168.2260285,0.000131,2]
[339751868,1727940632346,-157.81952886,0.00013562,2]
[339751869,1727940632356,-345.68685606,0.00013588,2]
[339751870,1727940632366,-153.0,0.00013589,2]
[339751871,1727940632376,-153.0,0.00013589,2]
[339751872,1727940632385,-4276.17375152,0.00013598,2]
[339751873,1727940632395,-521.34904863,0.00013598,2]
[339751874,1727940632405,-4231.03778392,0.000136,2]
[339751883,1727940637843,-334.29470453,0.000136,2]
[339751884,1727940637855,-388.94201206,0.000136,2]
[339751885,1727940637866,-16204.02520309,0.000136,2]
[339751886,1727940637879,-1347.40426174,0.000136,2]
[339751904,1727940640040,-6382.43780182,0.000136,2]
[339751905,1727940640051,-772.6893405,0.000136,2]
[339751906,1727940640063,-740.58,0.000136,2]
[339751907,1727940640075,-742.855974,0.000136,2]
[339751908,1727940640087,-725.795,0.000136,2]
[339751909,1727940640098,-1581.8952578,0.000136,2]
[339751941,1727940642836,-9819.3684418,0.000136,2]
[339751942,1727940642847,-3201.75,0.000136,2]
[339751944,1727940642870,-2522.5679644,0.000136,2]
[339751965,1727940645856,-521.34904863,0.000136,2]
[339751978,1727940646021,-16.85603925,0.000136,2]
[339751979,1727940748954,234.0,0.000209,120]
[339751982,1727941193068,-198.56973008,0.00012124,2]
[339751983,1727941193105,-1335.05282564,0.00012503,2]
[339751984,1727941193129,-385.006564,0.00012603,2]
[339751985,1727941193154,-169.116464,0.0001266,2]
[339751986,1727941193179,-169.116464,0.00012667,2]
[339751987,1727941193204,-169.116464,0.00012674,2]
[339751988,1727941193229,-169.116464,0.00012681,2]
[339751989,1727941193252,-169.116464,0.00012688,2]
[339751990,1727941193275,-169.116464,0.00012695,2]
[339751991,1727941193299,-169.116464,0.00012702,2]
[339751992,1727941193321,-169.116464,0.00012709,2]
[339751993,1727941193354,-169.116464,0.00012716,2]
[339751994,1727941193377,-169.116464,0.00012723,2]
[339751995,1727941193402,-250.0000035,0.00012783,2]
[339752001,1727941464823,-300.0,0.00012635,2]
[339752002,1727941464847,-300.0,0.00012635,2]
[339752003,1727941464871,-9400.0,0.00012636,2]
[339752004,1727941469792,-9091.9575211,0.00012636,2]
[339752007,1727941531140,-286.05914508,0.00013205,2]
[339752008,1727941541097,-279.927319,0.00013506,2]
[339752009,1727941541128,-142.02416845,0.00013587,2]
[339752012,1727941574389,600.76033425,0.00010201,2]
[339752014,1727941637111,-289.84750774,0.00013588,2]
[339752015,1727941637134,-748.50592283,0.00013598,2]
[339752016,1727941637156,-650.77993524,0.000136,2]
[339752017,1727941654232,-681.55196345,0.000136,2]
[339752019,1727941760788,242.83409521,0.00010201,2]
[339752020,1727941760812,253.01630268,0.00010201,2]
[339752021,1727941760836,1.43207946,0.00010201,2]
[339752023,1727941817116,228.0,0.000209,120]
[339752125,1727941838059,-163.27239798,0.000126,2]
[339752127,1727941838070,-551.280801,0.00012603,2]
[339752128,1727941838080,-13667.74950745,0.000136,2]
[339752169,1727941838960,-11828.15170778,0.000136,2]
[339752170,1727941838972,-1192.04188107,0.000136,2]
[339752171,1727941838981,-226.0,0.0001364,2]
[339752172,1727941838991,-581.95811893,0.0001367,2]
[339752189,1727941839971,-2746.48608107,0.0001367,2]
[339752190,1727941839981,-300.0,0.00013672,2]
[339752191,1727941839990,-500.0,0.00013673,2]
[339752192,1727941840000,-500.0,0.00013673,2]
[339752193,1727941840009,-500.0,0.00013673,2]
[339752194,1727941840019,-500.0,0.00013673,2]
[339752195,1727941840029,-4211.00017816,0.00013678,2]
[339752196,1727941840040,-6764.14178463,0.00013678,2]
[339752197,1727941840052,-644.17787522,0.00013678,2]
[339752198,1727941840062,-10482.6010378,0.00013678,2]
[339752199,1727941840071,-93263.15304619,0.00013678,2]
[339752200,1727941840092,-8085.25162381,0.00013678,2]
[339752201,1727941840102,-68136.9067456,0.00013688,2]
[339752202,1727941840113,-174949.6380661,0.00013688,2]
[339752207,1727941843155,-1155.01,0.00013688,2]
[339752211,1727941845992,-655.3735034,0.00013688,2]
[339752212,1727942014668,500.0,0.00010201,2]
[339752213,1727942020153,150.0,0.0002101,120]
[339752223,1727942108707,227.0,0.000209,120]
[339752224,1727942618631,500.0,0.00010201,2]
[339752228,1727942736112,-255.50826955,0.00010959,2]
[339752229,1727942743123,-86.04173045,0.00010959,2]
[339752230,1727942743147,-174.7452044,0.00011783,2]
[339752231,1727942743171,-207.827048,0.00012536,2]
[339752232,1727942743193,-365.756236,0.00012603,2]
[339752233,1727942743216,-207.827048,0.00012863,2]
[339752234,1727942743239,-500.0,0.00012941,2]
[339752235,1727942743262,-575.84543493,0.00013179,2]
[339752237,1727942821687,500.0,0.00010201,2]
[339752257,1727942852108,-500.0,0.00012124,2]
[339752258,1727942852130,-236.73356834,0.00012941,2]
[339752259,1727942854297,-263.26643166,0.00012941,2]
[339752260,1727942854320,-207.827048,0.0001319,2]
[339752261,1727942854341,-250.9339806,0.000134,2]
[339752262,1727942854364,-163.73619785,0.00013493,2]
[339752263,1727942854385,-153.0,0.000135,2]
[339752264,1727942854407,-153.0,0.000135,2]
[339752265,1727942854430,-209.4588924,0.000135,2]
[339752266,1727942854451,-153.0,0.000135,2]
[339752267,1727942854475,-209.4588924,0.000135,2]
[339752268,1727942854496,-263.84170256,0.00013587,2]
[339752269,1727942854517,-300.0,0.00013597,2]
[339752270,1727942854539,-300.0,0.00013597,2]
[339752271,1727942854559,-673.65533052,0.00013598,2]
[339752272,1727942854580,-598.94825023,0.00013598,2]
[339752273,1727942954816,233.41205695,0.00010201,2]
[339752274,1727942954844,266.58794305,0.00010201,2]
[339752318,1727943032188,-81.85928537,0.00012603,2]
[339752365,1727943038097,-284.82829781,0.00012603,2]
[339752372,1727943038154,-177.29268082,0.00012603,2]
[339752374,1727943038164,-200.0,0.00012941,2]
[339752376,1727943038174,-22.70731918,0.00013578,2]
[339752378,1727943038185,-3737.76867261,0.00013578,2]
[339752380,1727943038195,-405.11574369,0.00013578,2]
[339752382,1727943038204,-263.84170256,0.0001359,2]
[339752384,1727943038214,-263.84170256,0.00013593,2]
[339752387,1727943038224,-263.84170256,0.00013595,2]
[339752389,1727943038234,-263.84170256,0.00013598,2]
[339752391,1727943038243,-3795.43728319,0.00013598,2]
[339752393,1727943038252,-300.0,0.00013599,2]
[339752395,1727943038262,-209.4588924,0.000136,2]
[339752397,1727943038271,-418.9177848,0.000136,2]
[339752399,1727943038281,-753.72319449,0.00013668,2]
[339752401,1727943038291,-30048.8278242,0.00013668,2]
[339752403,1727943038300,-1164.53784528,0.00013668,2]
[339752405,1727943038310,-500.9831136,0.00013673,2]
[339752407,1727943038319,-500.0,0.00013673,2]
[339752409,1727943038329,-616.0334139,0.00013673,2]
[339752411,1727943038338,-500.0,0.00013673,2]
[339752413,1727943038347,-503.11341653,0.00013673,2]
[339752415,1727943038357,-503.24524112,0.00013673,2]
[339752417,1727943038366,-500.0,0.00013673,2]
[339752419,1727943038375,-500.0,0.00013673,2]
[339752421,1727943038385,-500.0,0.00013673,2]
[339752423,1727943038396,-177.533,0.00013678,2]
[339752425,1727943038406,-15024.4139121,0.00013678,2]
[339752427,1727943038416,-582.26892264,0.00013678,2]
[339752429,1727943038427,-2522.41313828,0.00013687,2]
[339752431,1727943038438,-150.01,0.00013687,2]
[339752433,1727943038448,-105170.897385,0.00013688,2]
[339752436,1727943038459,-4075.88245848,0.00013688,2]
[339752438,1727943038470,-150.0,0.00013689,2]
[339752440,1727943038479,-150.0,0.00013698,2]
[339752442,1727943038489,-150.303,0.00013698,2]
[339752444,1727943038498,-525.945,0.00013698,2]
[339752446,1727943038508,-1218.0,0.00013698,2]
[339752448,1727943038518,-6316.50026724,0.00013698,2]
[339752450,1727943038531,-500.0,0.00013698,2]
[339752452,1727943038540,-176.87818235,0.00013698,2]
[339752454,1727943038549,-502.95547008,0.00013698,2]
[339752456,1727943038559,-194.26523522,0.00013698,2]
[339752458,1727943038569,-500.0,0.00013698,2]
[339752460,1727943038578,-500.0,0.00013698,2]
[339752463,1727943038593,-481.65400253,0.00013698,2]
[339752465,1727943038603,-500.0,0.00013698,2]
[339752467,1727943038613,-471.53799426,0.00013698,2]
[339752469,1727943038622,-500.0,0.00013698,2]
[339752471,1727943038631,-500.0,0.00013698,2]
[339752473,1727943038640,-500.0,0.00013698,2]
[339752475,1727943038650,-414.17511305,0.00013698,2]
[339752477,1727943038660,-500.0,0.00013698,2]
[339752479,1727943038669,-478.13571489,0.00013698,2]
[339752481,1727943038678,-177.83930633,0.00013698,2]
[339752483,1727943038687,-206.34958274,0.00013698,2]
[339752485,1727943038697,-600.31127679,0.00013698,2]
[339752487,1727943038707,-500.22584646,0.00013698,2]
[339752489,1727943038717,-151.0,0.00013698,2]
[339752491,1727943038726,-151.0,0.00013698,2]
[339752494,1727943038739,-162.484506,0.00013698,2]
[339752496,1727943038748,-152.451391,0.00013698,2]
[339752498,1727943038758,-151.0,0.00013698,2]
[339752500,1727943038768,-151.0,0.00013698,2]
[339752502,1727943038778,-151.0,0.00013698,2]
[339752504,1727943038788,-151.0,0.00013698,2]
[339752506,1727943038797,-238.462701,0.00013698,2]
[339752508,1727943038806,-500.0,0.00013698,2]
[339752510,1727943038815,-151.0,0.00013698,2]
[339752512,1727943038825,-151.0,0.00013698,2]
[339752514,1727943038834,-151.0,0.00013698,2]
[339752516,1727943038844,-151.0,0.00013698,2]
[339752518,1727943038854,-151.0,0.00013698,2]
[339752520,1727943038863,-208.080474,0.00013698,2]
[339752522,1727943038873,-500.0,0.00013698,2]
[339752524,1727943038882,-151.0,0.00013698,2]
[339752526,1727943038891,-151.0,0.00013698,2]
[339752528,1727943038900,-151.0,0.00013698,2]
[339752530,1727943038909,-243.983746,0.00013698,2]
[339752532,1727943038918,-151.0,0.00013698,2]
[339752534,1727943038928,-151.0,0.00013698,2]
[339752536,1727943038938,-151.0,0.00013698,2]
[339752538,1727943038948,-151.0,0.00013698,2]
[339752540,1727943038958,-151.0,0.00013698,2]
[339752542,1727943038968,-151.0,0.00013698,2]
[339752544,1727943038977,-151.0,0.00013698,2]
[339752546,1727943038987,-151.0,0.00013698,2]
[339752548,1727943038997,-151.0,0.00013698,2]
[339752550,1727943039006,-151.0,0.00013698,2]
[339752552,1727943039017,-151.0,0.00013698,2]
[339752554,1727943039027,-151.0,0.00013698,2]
[339752556,1727943039038,-151.0,0.00013698,2]
[339752558,1727943039047,-151.0,0.00013698,2]
[339752560,1727943039056,-151.0,0.00013698,2]
[339752562,1727943039066,-156.159495,0.00013698,2]
[339752565,1727943039076,-151.0,0.00013698,2]
[339752567,1727943039085,-500.0,0.00013698,2]
[339752569,1727943039095,-151.0,0.00013698,2]
[339752571,1727943039105,-151.0,0.00013698,2]
[339752573,1727943039114,-151.0,0.00013698,2]
[339752575,1727943039126,-151.0,0.00013698,2]
[339752577,1727943039136,-151.0,0.00013698,2]
[339752579,1727943039149,-151.0,0.00013698,2]
[339752581,1727943039161,-151.0,0.00013698,2]
[339752583,1727943039171,-151.0,0.00013698,2]
[339752585,1727943039180,-281.948426,0.00013698,2]
[339752587,1727943039190,-502.39958623,0.00013698,2]
[339752589,1727943039201,-249.117732,0.00013698,2]
[339752591,1727943039210,-249.117732,0.00013698,2]
[339752593,1727943039221,-249.117732,0.00013698,2]
[339752595,1727943039231,-249.117732,0.00013698,2]
[339752597,1727943039240,-249.117732,0.00013698,2]
[339752599,1727943039251,-249.117732,0.00013698,2]
[339752602,1727943039262,-249.117732,0.00013698,2]
[339752604,1727943039273,-249.117732,0.00013698,2]
[339752606,1727943039284,-500.0,0.00013698,2]
[339752608,1727943039293,-249.117732,0.00013698,2]
[339752610,1727943039303,-249.117732,0.00013698,2]
[339752612,1727943039313,-249.117732,0.00013698,2]
[339752614,1727943039323,-249.117732,0.00013698,2]
[339752616,1727943039332,-249.117732,0.00013698,2]
[339752618,1727943039343,-249.117732,0.00013698,2]
[339752620,1727943039353,-249.117732,0.00013698,2]
[339752622,1727943039364,-249.117732,0.00013698,2]
[339752624,1727943039375,-249.117732,0.00013698,2]
[339752626,1727943039384,-249.117732,0.00013698,2]
[339752628,1727943039394,-249.117732,0.00013698,2]
[339752630,1727943039403,-249.11773,0.00013698,2]
[339752632,1727943039413,-500.0,0.00013698,2]
[339752634,1727943039423,-500.0,0.00013698,2]
[339752636,1727943039433,-500.0,0.00013698,2]
[339752639,1727943039444,-500.0,0.00013698,2]
[339752641,1727943039456,-500.0,0.00013698,2]
[339752643,1727943039467,-500.0,0.00013698,2]
[339752645,1727943039477,-500.0,0.00013698,2]
[339752647,1727943039486,-500.0,0.00013698,2]
[339752649,1727943039495,-500.0,0.00013698,2]
[339752651,1727943039506,-556.12372419,0.00013698,2]
[339752653,1727943039515,-500.0,0.00013698,2]
[339752655,1727943039526,-617.82013953,0.00013698,2]
[339752657,1727943039537,-500.0,0.00013698,2]
[339752659,1727943039547,-500.24714373,0.00013698,2]
[339752661,1727943039557,-500.0,0.00013698,2]
[339752663,1727943039566,-199.910288,0.00013698,2]
[339752665,1727943039576,-199.910288,0.00013698,2]
[339752667,1727943039586,-199.910288,0.00013698,2]
[339752669,1727943039596,-199.910288,0.00013698,2]
[339752671,1727943039607,-199.910288,0.00013698,2]
[339752673,1727943039616,-199.910288,0.00013698,2]
[339752676,1727943039626,-199.910288,0.00013698,2]
[339752678,1727943039635,-199.910288,0.00013698,2]
[339752679,1727943039645,-500.98266916,0.00013698,2]
[339752681,1727943039654,-199.910288,0.00013698,2]
[339752683,1727943039663,-199.910288,0.00013698,2]
[339752685,1727943039672,-199.910288,0.00013698,2]
[339752687,1727943039682,-199.910288,0.00013698,2]
[339752690,1727943039691,-199.910288,0.00013698,2]
[339752692,1727943039701,-199.910288,0.00013698,2]
[339752695,1727943039710,-199.910288,0.00013698,2]
[339752699,1727943039720,-199.910288,0.00013698,2]
[339752701,1727943039730,-199.910288,0.00013698,2]
[339752703,1727943039741,-199.910288,0.00013698,2]
[339752706,1727943039750,-199.910288,0.00013698,2]
[339752709,1727943039759,-199.910295,0.00013698,2]
[339752711,1727943039769,-568.49,0.00013698,2]
[339752713,1727943039779,-151.0,0.00013698,2]
[339752715,1727943039789,-500.0,0.00013698,2]
[339752717,1727943039799,-500.0,0.00013698,2]
[339752719,1727943039808,-500.0,0.00013698,2]
[339752721,1727943039818,-514.09377697,0.00013698,2]
[339752723,1727943039828,-500.0,0.00013698,2]
[339752726,1727943039838,-500.0,0.00013698,2]
[339752728,1727943039848,-500.0,0.00013698,2]
[339752730,1727943039858,-500.0,0.00013698,2]
[339752732,1727943039868,-151.0,0.00013698,2]
[339752734,1727943039878,-151.0,0.00013698,2]
[339752736,1727943039888,-151.0,0.00013698,2]
[339752738,1727943039897,-151.0,0.00013698,2]
[339752740,1727943039906,-151.0,0.00013698,2]
[339752742,1727943039916,-151.0,0.00013698,2]
[339752744,1727943039926,-151.0,0.00013698,2]
[339752746,1727943039936,-151.0,0.00013698,2]
[339752748,1727943039946,-500.34125057,0.00013698,2]
[339752750,1727943039955,-151.0,0.00013698,2]
[339752753,1727943039966,-151.0,0.00013698,2]
[339752755,1727943039975,-151.0,0.00013698,2]
[339752757,1727943039986,-151.0,0.00013698,2]
[339752759,1727943039996,-925.38,0.00013698,2]
[339752761,1727943040005,-151.0,0.00013698,2]
[339752763,1727943040015,-504.78295645,0.00013698,2]
[339752765,1727943040024,-151.0,0.00013698,2]
[339752767,1727943040035,-151.0,0.00013698,2]
[339752769,1727943040045,-151.0,0.00013698,2]
[339752771,1727943040054,-151.0,0.00013698,2]
[339752773,1727943040064,-151.0,0.00013698,2]
[339752775,1727943040073,-500.0,0.00013698,2]
[339752777,1727943040083,-151.0,0.00013698,2]
[339752779,1727943040093,-151.0,0.00013698,2]
[339752781,1727943040103,-274.688144,0.00013698,2]
[339752783,1727943040113,-500.67397721,0.00013698,2]
[339752785,1727943040123,-500.0,0.00013698,2]
[339752787,1727943040132,-500.0,0.00013698,2]
[339752789,1727943040144,-500.0,0.00013698,2]
[339752791,1727943040156,-500.0,0.00013698,2]
[339752793,1727943040166,-500.0,0.00013698,2]
[339752795,1727943040175,-500.65304104,0.00013698,2]
[339752797,1727943040186,-500.0,0.00013698,2]
[339752799,1727943040196,-500.0,0.00013698,2]
[339752801,1727943040206,-500.0,0.00013698,2]
[339752803,1727943040215,-500.0,0.00013698,2]
[339752805,1727943040226,-500.0,0.00013698,2]
[339752807,1727943040236,-500.0,0.00013698,2]
[339752809,1727943040246,-151.0,0.00013698,2]
[339752811,1727943040256,-151.0,0.00013698,2]
[339752813,1727943040266,-500.0,0.00013698,2]
[339752815,1727943040276,-151.0,0.00013698,2]
[339752818,1727943040288,-151.0,0.00013698,2]
[339752820,1727943040297,-500.0,0.00013698,2]
[339752822,1727943040307,-151.0,0.00013698,2]
[339752824,1727943040318,-151.0,0.00013698,2]
[339752826,1727943040327,-151.0,0.00013698,2]
[339752828,1727943040337,-546.35,0.00013698,2]
[339752830,1727943040346,-151.0,0.00013698,2]
[339752832,1727943040355,-151.0,0.00013698,2]
[339752834,1727943040365,-199.196347,0.00013698,2]
[339752836,1727943040375,-500.0,0.00013698,2]
[339752838,1727943040384,-501.97698082,0.00013698,2]
[339752840,1727943040393,-726.61,0.00013698,2]
[339752842,1727943040402,-500.35684235,0.00013698,2]
[339752844,1727943040412,-500.0,0.00013698,2]
[339752846,1727943040422,-500.0,0.00013698,2]
[339752848,1727943040431,-500.0,0.00013698,2]
[339752850,1727943040441,-188.64431193,0.00013698,2]
[339752852,1727943040451,-500.0,0.00013698,2]
[339752854,1727943040460,-500.0,0.00013698,2]
[339752856,1727943040470,-500.0,0.00013698,2]
[339752859,1727943040479,-151.0,0.00013698,2]
[339752861,1727943040489,-151.0,0.00013698,2]
[339752863,1727943040498,-151.0,0.00013698,2]
[339752865,1727943040508,-151.0,0.00013698,2]
[339752867,1727943040517,-528.64,0.00013698,2]
[339752869,1727943040526,-502.51873963,0.00013698,2]
[339752871,1727943040539,-944.52,0.00013698,2]
[339752873,1727943040548,-500.0,0.00013698,2]
[339752894,1727943040736,-500.0,0.00013698,2]
[339752896,1727943040746,-500.0,0.00013698,2]
[339752898,1727943040755,-501.32018171,0.00013698,2]
[339752900,1727943040764,-500.0,0.00013698,2]
[339752902,1727943040774,-500.0,0.00013698,2]
[339752904,1727943040783,-500.0,0.00013698,2]
[339752906,1727943040794,-514.76571973,0.00013698,2]
[339752908,1727943040804,-500.23550126,0.00013698,2]
[339752910,1727943040814,-248.13399657,0.00013698,2]
[339752912,1727943040824,-500.0,0.00013698,2]
[339752914,1727943040833,-776.56,0.00013698,2]
[339752916,1727943040843,-500.0,0.00013698,2]
[339752918,1727943040853,-500.0,0.00013698,2]
[339752920,1727943040862,-500.0,0.00013698,2]
[339752922,1727943040871,-500.0,0.00013698,2]
[339752924,1727943040881,-239.46117416,0.00013698,2]
[339752926,1727943040890,-505.38553148,0.00013698,2]
[339752928,1727943040900,-500.0,0.00013698,2]
[339752930,1727943040910,-500.0,0.00013698,2]
[339752932,1727943040920,-500.0,0.00013698,2]
[339752934,1727943040930,-500.0,0.00013698,2]
[339752936,1727943040940,-503.92530129,0.00013698,2]
[339752938,1727943040950,-500.0,0.00013698,2]
[339752940,1727943040959,-500.0,0.00013698,2]
[339752942,1727943040969,-500.0,0.00013698,2]
[339752944,1727943040978,-329.10592182,0.00013698,2]
[339752946,1727943040988,-500.0,0.00013698,2]
[339752948,1727943040998,-635.46,0.00013698,2]
[339752951,1727943041008,-500.0,0.00013698,2]
[339752953,1727943041017,-500.74461163,0.00013698,2]
[339752955,1727943041026,-500.0,0.00013698,2]
[339752957,1727943041037,-500.0,0.00013698,2]
[339752959,1727943041046,-501.19760087,0.00013698,2]
[339752961,1727943041056,-587.28,0.00013698,2]
[339752963,1727943041065,-610.16,0.00013698,2]
[339752965,1727943041074,-500.0,0.00013698,2]
[339752967,1727943041085,-500.0,0.00013698,2]
[339752969,1727943041094,-500.0,0.00013698,2]
[339752971,1727943041104,-911.33,0.00013698,2]
[339752973,1727943041113,-500.0,0.00013698,2]
[339752975,1727943041123,-622.66,0.00013698,2]
[339752977,1727943041132,-500.0,0.00013698,2]
[339752979,1727943041145,-500.0,0.00013698,2]
[339752981,1727943041155,-507.51,0.00013698,2]
[339752983,1727943041164,-500.0,0.00013698,2]
[339752984,1727943041173,-500.0,0.00013698,2]
[339752985,1727943041182,-500.0,0.00013698,2]
[339752986,1727943041192,-500.0,0.00013698,2]
[339752987,1727943041201,-500.0,0.00013698,2]
[339752988,1727943041210,-647.97,0.00013698,2]
[339752989,1727943041220,-500.0,0.00013698,2]
[339752990,1727943041229,-500.0,0.00013698,2]
[339752991,1727943041240,-500.0,0.00013698,2]
[339752992,1727943041250,-500.0,0.00013698,2]
[339752993,1727943041259,-500.0,0.00013698,2]
[339752994,1727943041269,-500.0,0.00013698,2]
[339752995,1727943041278,-500.0,0.00013698,2]
[339752996,1727943041288,-500.0,0.00013698,2]
[339752997,1727943041298,-500.0,0.00013698,2]
[339752998,1727943041308,-500.0,0.00013698,2]
[339752999,1727943041317,-500.0,0.00013698,2]
[339753000,1727943041327,-342.16437234,0.00013698,2]
[339753001,1727943041337,-500.0,0.00013698,2]
[339753002,1727943041346,-508.47739868,0.00013698,2]
[339753003,1727943041355,-500.0,0.00013698,2]
[339753004,1727943041364,-500.0,0.00013698,2]
[339753005,1727943041374,-151.0,0.00013698,2]
[339753006,1727943041383,-151.0,0.00013698,2]
[339753007,1727943041392,-151.0,0.00013698,2]
[339753008,1727943041401,-500.0,0.00013698,2]
[339753010,1727943041410,-501.26492555,0.00013698,2]
[339753012,1727943041419,-500.0,0.00013698,2]
[339753014,1727943041428,-429.91754083,0.00013698,2]
[339753016,1727943041437,-151.0,0.00013698,2]
[339753018,1727943041446,-151.0,0.00013698,2]
[339753020,1727943041455,-199.726625,0.00013698,2]
[339753022,1727943041465,-500.0,0.00013698,2]
[339753024,1727943041474,-500.0,0.00013698,2]
[339753026,1727943041483,-506.1876791,0.00013698,2]
[339753028,1727943041492,-500.0,0.00013698,2]
[339753030,1727943041502,-860.81,0.00013698,2]
[339753032,1727943041511,-500.0,0.00013698,2]
[339753034,1727943041520,-500.0,0.00013698,2]
[339753036,1727943041530,-500.0,0.00013698,2]
[339753037,1727943041541,-500.0,0.00013698,2]
[339753039,1727943041550,-500.0,0.00013698,2]
[339753042,1727943041560,-500.0,0.00013698,2]
[339753044,1727943041569,-500.0,0.00013698,2]
[339753046,1727943041579,-500.0,0.00013698,2]
[339753047,1727943041588,-500.0,0.00013698,2]
[339753049,1727943041598,-500.0,0.00013698,2]
[339753051,1727943041607,-151.0,0.00013698,2]
[339753053,1727943041616,-151.0,0.00013698,2]